[Event "*** SCC Grand Prix: Titled Tuesday Blitz"]
[Site "Chess.com"]
[Date "2020.09.08"]
[Round "3"]
[White "ErikRonka"]
[Black "louis198"]
[Result "0-1"]
[WhiteElo "2252"]
[BlackElo "2505"]
[TimeControl "180+1"]
[EndTime "10:27:42 PDT"]
[Termination "louis198 won by resignation"]

1. e4 {[%clk 0:02:59.4]} 1... e6 {[%clk 0:02:59.7]} 2. d4 {[%clk 0:02:59]} 2...
d5 {[%clk 0:02:59.5]} 3. Nc3 {[%clk 0:02:59.4]} 3... dxe4 {[%clk 0:02:59.5]} 4.
Nxe4 {[%clk 0:02:59.1]} 4... Bd7 {[%clk 0:02:58.6]} 5. Nf3 {[%clk 0:02:55.6]}
5... Bc6 {[%clk 0:02:58.3]} 6. Bd3 {[%clk 0:02:56.1]} 6... Nd7 {[%clk
0:02:55.3]} 7. Bf4 {[%clk 0:02:53.9]} 7... Ngf6 {[%clk 0:02:54.3]} 8. Nxf6+
{[%clk 0:02:53.5]} 8... Nxf6 {[%clk 0:02:46.1]} 9. c3 {[%clk 0:02:16.2]} 9...
Bd6 {[%clk 0:02:43.6]} 10. Bg3 {[%clk 0:02:06.8]} 10... Be4 {[%clk 0:02:34.1]}
11. Bxe4 {[%clk 0:01:56.2]} 11... Nxe4 {[%clk 0:02:33.7]} 12. Qe2 {[%clk
0:01:56.7]} 12... Nxg3 {[%clk 0:02:33.3]} 13. hxg3 {[%clk 0:01:57.6]} 13... c6
{[%clk 0:02:33.2]} 14. Qe4 {[%clk 0:01:48.1]} 14... h6 {[%clk 0:02:32.3]} 15. g4
{[%clk 0:01:42.8]} 15... Be7 {[%clk 0:02:24.9]} 16. Ne5 {[%clk 0:01:38.8]} 16...
Bf6 {[%clk 0:02:17.1]} 17. Nf3 {[%clk 0:01:24.3]} 17... Qd5 {[%clk 0:02:15.3]}
18. Nd2 {[%clk 0:01:12.1]} 18... O-O-O {[%clk 0:02:05.3]} 19. f4 {[%clk
0:00:55.9]} 19... c5 {[%clk 0:02:03.3]} 20. Qxd5 {[%clk 0:00:48.1]} 20... exd5
{[%clk 0:02:01.3]} 21. dxc5 {[%clk 0:00:32.6]} 21... Rhe8+ {[%clk 0:02:00.9]}
22. Kf2 {[%clk 0:00:20.5]} 22... d4 {[%clk 0:02:01.3]} 23. Nf3 {[%clk
0:00:16.7]} 23... dxc3 {[%clk 0:01:59.9]} 24. bxc3 {[%clk 0:00:17.6]} 24... Bxc3
{[%clk 0:01:58.1]} 25. Rac1 {[%clk 0:00:16.8]} 25... Bd4+ {[%clk 0:01:57.9]} 26.
Kg3 {[%clk 0:00:14.4]} 26... Re2 {[%clk 0:01:53.5]} 27. Rhd1 {[%clk 0:00:13.7]}
27... Bf2+ {[%clk 0:01:53]} 28. Kh3 {[%clk 0:00:14.1]} 28... Rxd1 {[%clk
0:01:52.4]} 29. Rxd1 {[%clk 0:00:15]} 29... Bxc5 {[%clk 0:01:52.3]} 30. Ne5
{[%clk 0:00:15.6]} 30... f6 {[%clk 0:01:48.6]} 31. Rc1 {[%clk 0:00:08]} 31... b6
{[%clk 0:01:47.3]} 32. Nd3 {[%clk 0:00:07.4]} 32... Re3+ {[%clk 0:01:47.5]} 0-1

[Event "*** SCC Grand Prix: Titled Tuesday Blitz"]
[Site "Chess.com"]
[Date "2020.09.08"]
[Round "3"]
[White "Yoshikrov"]
[Black "MNyuyu"]
[Result "1-0"]
[WhiteElo "2101"]
[BlackElo "2326"]
[TimeControl "180+1"]
[EndTime "10:27:45 PDT"]
[Termination "Yoshikrov won by resignation"]

1. e4 {[%clk 0:03:00.9]} 1... d5 {[%clk 0:02:58.8]} 2. exd5 {[%clk 0:02:57.3]}
2... Qxd5 {[%clk 0:02:58.8]} 3. Nc3 {[%clk 0:02:56.7]} 3... Qd8 {[%clk
0:02:59.1]} 4. Bc4 {[%clk 0:02:56.9]} 4... c6 {[%clk 0:02:58.7]} 5. Nf3 {[%clk
0:02:57.4]} 5... Bf5 {[%clk 0:02:58.7]} 6. O-O {[%clk 0:02:57.3]} 6... e6 {[%clk
0:02:58.7]} 7. d4 {[%clk 0:02:57.8]} 7... Nf6 {[%clk 0:02:57.2]} 8. Re1 {[%clk
0:02:58.2]} 8... Be7 {[%clk 0:02:54.6]} 9. Bf4 {[%clk 0:02:36.3]} 9... O-O
{[%clk 0:02:53.8]} 10. Qe2 {[%clk 0:02:34]} 10... h6 {[%clk 0:02:53.2]} 11. Rad1
{[%clk 0:02:31.1]} 11... Nbd7 {[%clk 0:02:52.5]} 12. Ne5 {[%clk 0:02:27.1]}
12... Nd5 {[%clk 0:02:51.3]} 13. Nxd5 {[%clk 0:02:12.3]} 13... cxd5 {[%clk
0:02:48.2]} 14. Bd3 {[%clk 0:02:12.7]} 14... Bxd3 {[%clk 0:02:47.1]} 15. Rxd3
{[%clk 0:02:13.6]} 15... Nxe5 {[%clk 0:02:46.5]} 16. Bxe5 {[%clk 0:02:09.1]}
16... Bf6 {[%clk 0:02:45.7]} 17. Rg3 {[%clk 0:02:08.3]} 17... Kh8 {[%clk
0:02:38.5]} 18. c3 {[%clk 0:02:02.9]} 18... Bxe5 {[%clk 0:02:37.3]} 19. Qxe5
{[%clk 0:02:02.7]} 19... Qf6 {[%clk 0:02:36.8]} 20. Qxf6 {[%clk 0:01:59.5]}
20... gxf6 {[%clk 0:02:36.6]} 21. f4 {[%clk 0:01:48.4]} 21... f5 {[%clk
0:02:35.5]} 22. Kf2 {[%clk 0:01:46.4]} 22... b5 {[%clk 0:02:34.8]} 23. a3 {[%clk
0:01:43.5]} 23... a5 {[%clk 0:02:34.2]} 24. Rge3 {[%clk 0:01:36.8]} 24... Rfb8
{[%clk 0:02:31.5]} 25. Rc1 {[%clk 0:01:33.4]} 25... b4 {[%clk 0:02:29.3]} 26.
cxb4 {[%clk 0:01:30.2]} 26... axb4 {[%clk 0:02:29]} 27. Rc7 {[%clk 0:01:26.9]}
27... Kg7 {[%clk 0:02:28.3]} 28. Rg3+ {[%clk 0:01:23.7]} 28... Kf6 {[%clk
0:02:27.7]} 29. Rh3 {[%clk 0:01:21.8]} 29... Rh8 {[%clk 0:02:27.2]} 30. axb4
{[%clk 0:01:15.9]} 30... Rab8 {[%clk 0:02:25.5]} 31. Rb3 {[%clk 0:01:13.2]}
31... Rb5 {[%clk 0:02:24.9]} 32. Rc5 {[%clk 0:01:12.7]} 32... Rb7 {[%clk
0:02:20]} 33. b5 {[%clk 0:01:12.8]} 33... Rhb8 {[%clk 0:02:17.7]} 34. Ke3 {[%clk
0:01:07.6]} 34... Rb6 {[%clk 0:02:16.8]} 35. Kd3 {[%clk 0:01:07.8]} 35... Ke7
{[%clk 0:02:16.1]} 36. Kc3 {[%clk 0:01:08.1]} 36... Kd6 {[%clk 0:02:15.4]} 37.
Kb4 {[%clk 0:01:07.8]} 37... f6 {[%clk 0:02:14.4]} 38. Rbc3 {[%clk 0:01:03.9]}
38... Ke7 {[%clk 0:02:03.4]} 39. Rc7+ {[%clk 0:01:02.5]} 39... Kf8 {[%clk
0:02:02.9]} 40. Rc8+ {[%clk 0:01:02]} 40... Kg7 {[%clk 0:02:02.5]} 41. Rxb8
{[%clk 0:01:02.1]} 41... Rxb8 {[%clk 0:02:02.1]} 42. Rc6 {[%clk 0:01:00.8]}
42... Kf7 {[%clk 0:02:00.2]} 43. Kc5 {[%clk 0:00:59.9]} 43... Rd8 {[%clk
0:01:54.5]} 44. b6 {[%clk 0:00:59.9]} 44... e5 {[%clk 0:01:53]} 45. b7 {[%clk
0:00:53.5]} 45... Rb8 {[%clk 0:01:51.6]} 46. Kb6 {[%clk 0:00:52.9]} 46... e4
{[%clk 0:01:51.1]} 47. Rc8 {[%clk 0:00:49.2]} 47... Rxb7+ {[%clk 0:01:49.5]} 48.
Kxb7 {[%clk 0:00:49.5]} 48... e3 {[%clk 0:01:46.8]} 49. Rc3 {[%clk 0:00:49.2]}
1-0

[Event "*** SCC Grand Prix: Titled Tuesday Blitz"]
[Site "Chess.com"]
[Date "2020.09.08"]
[Round "3"]
[White "The_Machine04"]
[Black "ailime26"]
[Result "1-0"]
[WhiteElo "2283"]
[BlackElo "1892"]
[TimeControl "180+1"]
[EndTime "10:27:49 PDT"]
[Termination "The_Machine04 won by resignation"]

1. d4 {[%clk 0:03:00.9]} 1... a6 {[%clk 0:03:00.9]} 2. Nf3 {[%clk 0:03:00.4]}
2... b5 {[%clk 0:03:01.8]} 3. e4 {[%clk 0:03:00.2]} 3... Bb7 {[%clk 0:03:02.7]}
4. Nbd2 {[%clk 0:02:59.6]} 4... g6 {[%clk 0:03:03.6]} 5. a4 {[%clk 0:02:59.7]}
5... Bg7 {[%clk 0:03:04.5]} 6. axb5 {[%clk 0:02:59.7]} 6... axb5 {[%clk
0:03:05.4]} 7. Rxa8 {[%clk 0:03:00.2]} 7... Bxa8 {[%clk 0:03:05.8]} 8. Bxb5
{[%clk 0:03:01.1]} 8... e6 {[%clk 0:02:59.9]} 9. O-O {[%clk 0:02:59.1]} 9... Ne7
{[%clk 0:02:59.1]} 10. c3 {[%clk 0:02:58.6]} 10... O-O {[%clk 0:02:58.9]} 11.
Bd3 {[%clk 0:02:57.9]} 11... d6 {[%clk 0:02:55]} 12. Re1 {[%clk 0:02:58.2]}
12... c5 {[%clk 0:02:52.1]} 13. Nc4 {[%clk 0:02:57.2]} 13... cxd4 {[%clk
0:02:48.3]} 14. cxd4 {[%clk 0:02:58.1]} 14... Nbc6 {[%clk 0:02:47.8]} 15. Be3
{[%clk 0:02:56.3]} 15... e5 {[%clk 0:02:19.7]} 16. d5 {[%clk 0:02:55]} 16... Nb4
{[%clk 0:02:18.5]} 17. Bb1 {[%clk 0:02:54.6]} 17... f5 {[%clk 0:02:16.4]} 18.
Ng5 {[%clk 0:02:48.7]} 18... fxe4 {[%clk 0:02:06.6]} 19. Ne6 {[%clk 0:02:48]}
19... Qb8 {[%clk 0:02:04.6]} 20. Nxf8 {[%clk 0:02:47.1]} 20... Kxf8 {[%clk
0:02:04.5]} 21. Bxe4 {[%clk 0:02:46.3]} 21... Bxd5 {[%clk 0:02:03.4]} 22. Bxd5
{[%clk 0:02:44.7]} 22... Nbxd5 {[%clk 0:02:04.3]} 23. Qd2 {[%clk 0:02:38.4]}
23... Qb4 {[%clk 0:01:45.7]} 24. Qxb4 {[%clk 0:02:35.9]} 24... Nxb4 {[%clk
0:01:45.7]} 25. Nxd6 {[%clk 0:02:36.4]} 25... Nd3 {[%clk 0:01:44.1]} 26. Re2
{[%clk 0:02:35.2]} 26... e4 {[%clk 0:01:37.4]} 27. Nxe4 {[%clk 0:02:34.2]} 27...
Nxb2 {[%clk 0:01:36]} 28. Ng5 {[%clk 0:02:32.5]} 28... Kg8 {[%clk 0:01:30.6]}
29. Bc1 {[%clk 0:02:23.1]} 29... Nd3 {[%clk 0:01:12.4]} 30. Rxe7 {[%clk
0:02:20.6]} 30... Nxc1 {[%clk 0:01:09.5]} 31. Re8+ {[%clk 0:02:20.4]} 31... Bf8
{[%clk 0:01:08.9]} 32. Nxh7 {[%clk 0:02:20.3]} 32... Kxh7 {[%clk 0:01:06.4]} 33.
Rxf8 {[%clk 0:02:20.3]} 33... Ne2+ {[%clk 0:01:06.1]} 34. Kf1 {[%clk 0:02:19.6]}
34... Nd4 {[%clk 0:01:06.3]} 35. Rf7+ {[%clk 0:02:14.6]} 35... Kg8 {[%clk
0:01:04.4]} 36. Ra7 {[%clk 0:02:13.4]} 36... Nf5 {[%clk 0:01:03.7]} 37. g3
{[%clk 0:02:11.9]} 37... Kf8 {[%clk 0:01:02]} 38. Kg2 {[%clk 0:02:11.8]} 38...
Ne7 {[%clk 0:00:59.3]} 39. h4 {[%clk 0:02:09.4]} 39... Kf7 {[%clk 0:00:59]} 40.
Kf3 {[%clk 0:02:09.2]} 40... Kf6 {[%clk 0:00:58.4]} 41. Rxe7 {[%clk 0:02:09]}
41... Kxe7 {[%clk 0:00:58]} 42. Kf4 {[%clk 0:02:09.9]} 42... Kf6 {[%clk
0:00:57.5]} 43. Kg4 {[%clk 0:02:10.4]} 43... Kg7 {[%clk 0:00:53.5]} 44. Kg5
{[%clk 0:02:11.3]} 44... Kh7 {[%clk 0:00:52.4]} 45. f4 {[%clk 0:02:11.6]} 45...
Kg7 {[%clk 0:00:52.2]} 46. g4 {[%clk 0:02:10.9]} 46... Kh7 {[%clk 0:00:51.2]}
47. Kf6 {[%clk 0:02:09.3]} 47... Kh6 {[%clk 0:00:50.6]} 48. Kf7 {[%clk
0:02:05.9]} 48... Kh7 {[%clk 0:00:49.5]} 49. g5 {[%clk 0:02:05.3]} 49... Kh8
{[%clk 0:00:48.4]} 50. Kxg6 {[%clk 0:02:04.7]} 50... Kg8 {[%clk 0:00:48.5]} 51.
f5 {[%clk 0:02:05.1]} 51... Kh8 {[%clk 0:00:48.3]} 52. f6 {[%clk 0:02:05.2]}
52... Kg8 {[%clk 0:00:48.2]} 53. f7+ {[%clk 0:02:05]} 53... Kf8 {[%clk
0:00:48.5]} 54. h5 {[%clk 0:02:05.5]} 54... Ke7 {[%clk 0:00:47.7]} 55. Kg7
{[%clk 0:02:05.6]} 1-0

[Event "*** SCC Grand Prix: Titled Tuesday Blitz"]
[Site "Chess.com"]
[Date "2020.09.08"]
[Round "3"]
[White "kuban1991"]
[Black "LuckSlayeer"]
[Result "1-0"]
[WhiteElo "2749"]
[BlackElo "2482"]
[TimeControl "180+1"]
[EndTime "10:27:50 PDT"]
[Termination "kuban1991 won by resignation"]

1. Nf3 {[%clk 0:03:00.9]} 1... d5 {[%clk 0:02:59.7]} 2. g3 {[%clk 0:03:01.4]}
2... Nf6 {[%clk 0:02:59.5]} 3. Bg2 {[%clk 0:03:01.8]} 3... g6 {[%clk 0:03:00.4]}
4. O-O {[%clk 0:03:02.1]} 4... Bg7 {[%clk 0:03:01.1]} 5. d4 {[%clk 0:03:02.7]}
5... O-O {[%clk 0:03:01.8]} 6. Nbd2 {[%clk 0:03:02.8]} 6... c5 {[%clk
0:02:56.4]} 7. dxc5 {[%clk 0:03:02]} 7... a5 {[%clk 0:02:54.7]} 8. a4 {[%clk
0:03:00.5]} 8... Na6 {[%clk 0:02:39.9]} 9. Nb3 {[%clk 0:02:59.9]} 9... Ne4
{[%clk 0:02:38.7]} 10. Ne1 {[%clk 0:02:56.5]} 10... Naxc5 {[%clk 0:01:52.3]} 11.
Nxc5 {[%clk 0:02:57.4]} 11... Nxc5 {[%clk 0:01:52.5]} 12. Qxd5 {[%clk
0:02:57.2]} 12... Qb6 {[%clk 0:01:50.2]} 13. Nd3 {[%clk 0:02:43.4]} 13... Nxd3
{[%clk 0:01:44.5]} 14. cxd3 {[%clk 0:02:44.3]} 14... Rd8 {[%clk 0:01:20.8]} 15.
Qb5 {[%clk 0:02:38.5]} 15... Qe6 {[%clk 0:01:10.7]} 16. Be3 {[%clk 0:02:30.8]}
16... Bd7 {[%clk 0:01:01.8]} 17. Qb6 {[%clk 0:02:26.7]} 17... Bc6 {[%clk
0:00:44]} 18. Bxc6 {[%clk 0:02:08.5]} 18... bxc6 {[%clk 0:00:41]} 19. Rac1
{[%clk 0:02:08.6]} 19... Rdc8 {[%clk 0:00:37.2]} 20. Rc2 {[%clk 0:01:59.9]}
20... Qd5 {[%clk 0:00:15.5]} 21. Qc5 {[%clk 0:01:48.2]} 21... Qxc5 {[%clk
0:00:14.1]} 22. Bxc5 {[%clk 0:01:49.1]} 22... Rab8 {[%clk 0:00:13.8]} 23. Ba3
{[%clk 0:01:48.9]} 23... Rb3 {[%clk 0:00:12.8]} 24. Rfc1 {[%clk 0:01:48.5]}
24... Rcb8 {[%clk 0:00:10.7]} 25. Rxc6 {[%clk 0:01:38.2]} 25... Bxb2 {[%clk
0:00:10.6]} 26. Rc8+ {[%clk 0:01:38.7]} 26... Kg7 {[%clk 0:00:06.3]} 27. Rxb8
{[%clk 0:01:37.7]} 27... Rxb8 {[%clk 0:00:03.9]} 28. Rb1 {[%clk 0:01:37.6]}
28... Be5 {[%clk 0:00:03.9]} 29. Rxb8 {[%clk 0:01:38.5]} 29... Bxb8 {[%clk
0:00:04.7]} 30. Bxe7 {[%clk 0:01:38.8]} 30... f6 {[%clk 0:00:03.8]} 31. Bd8
{[%clk 0:01:38]} 1-0

[Event "*** SCC Grand Prix: Titled Tuesday Blitz"]
[Site "Chess.com"]
[Date "2020.09.08"]
[Round "3"]
[White "K_A_S_T_O_R"]
[Black "Artem_Sadovsky"]
[Result "1-0"]
[WhiteElo "2765"]
[BlackElo "2523"]
[TimeControl "180+1"]
[EndTime "10:27:52 PDT"]
[Termination "K_A_S_T_O_R won by resignation"]

1. e4 {[%clk 0:03:00.9]} 1... g6 {[%clk 0:02:59.1]} 2. d4 {[%clk 0:03:00.4]}
2... Bg7 {[%clk 0:02:59.1]} 3. Nf3 {[%clk 0:03:00.7]} 3... d6 {[%clk 0:02:59.2]}
4. Bc4 {[%clk 0:03:00.5]} 4... e6 {[%clk 0:02:57.5]} 5. Bb3 {[%clk 0:03:00.5]}
5... Ne7 {[%clk 0:02:56.1]} 6. O-O {[%clk 0:03:00.9]} 6... h6 {[%clk 0:02:56.3]}
7. Re1 {[%clk 0:03:00.5]} 7... g5 {[%clk 0:02:55.4]} 8. h3 {[%clk 0:02:59.2]}
8... Ng6 {[%clk 0:02:55.7]} 9. a4 {[%clk 0:02:55.3]} 9... Nd7 {[%clk 0:02:54.9]}
10. a5 {[%clk 0:02:53.9]} 10... a6 {[%clk 0:02:43.5]} 11. Nbd2 {[%clk
0:02:45.2]} 11... O-O {[%clk 0:02:37.7]} 12. Nf1 {[%clk 0:02:45.3]} 12... Qe7
{[%clk 0:02:35.5]} 13. Ng3 {[%clk 0:02:44.7]} 13... Kh8 {[%clk 0:02:22.4]} 14.
Nh5 {[%clk 0:02:33.5]} 14... Nf6 {[%clk 0:02:19.3]} 15. Nxg7 {[%clk 0:02:31.7]}
15... Kxg7 {[%clk 0:02:20.2]} 16. e5 {[%clk 0:02:27.6]} 16... Nd7 {[%clk
0:02:05.2]} 17. c3 {[%clk 0:02:19.2]} 17... dxe5 {[%clk 0:01:54.8]} 18. dxe5
{[%clk 0:02:16]} 18... Nc5 {[%clk 0:01:45.7]} 19. Bc2 {[%clk 0:02:15.1]} 19...
Bd7 {[%clk 0:01:45.9]} 20. Nd4 {[%clk 0:02:07]} 20... Bb5 {[%clk 0:01:19.8]} 21.
Qf3 {[%clk 0:01:59.7]} 21... f5 {[%clk 0:01:08.7]} 22. exf6+ {[%clk 0:01:44.2]}
22... Rxf6 {[%clk 0:01:08.2]} 23. Qg3 {[%clk 0:01:37.5]} 23... Raf8 {[%clk
0:00:59]} 24. c4 {[%clk 0:01:27.5]} 24... Bxc4 {[%clk 0:00:52.7]} 25. Qc3 {[%clk
0:01:26.9]} 25... Rxf2 {[%clk 0:00:28.6]} 26. Nf5+ {[%clk 0:01:25.1]} 26... Kh7
{[%clk 0:00:28]} 27. Nxe7 {[%clk 0:01:24.2]} 27... Rxc2 {[%clk 0:00:12.1]} 28.
Qxc2 {[%clk 0:01:21.4]} 1-0

[Event "*** SCC Grand Prix: Titled Tuesday Blitz"]
[Site "Chess.com"]
[Date "2020.09.08"]
[Round "3"]
[White "Harsha_Bharathakoti"]
[Black "ChessicallyInclined"]
[Result "1-0"]
[WhiteElo "2810"]
[BlackElo "2567"]
[TimeControl "180+1"]
[EndTime "10:27:55 PDT"]
[Termination "Harsha_Bharathakoti won by resignation"]

1. c4 {[%clk 0:03:00.9]} 1... b6 {[%clk 0:02:59.8]} 2. Nc3 {[%clk 0:03:00.4]}
2... Bb7 {[%clk 0:03:00.3]} 3. e4 {[%clk 0:03:01]} 3... e5 {[%clk 0:03:00.4]} 4.
Nf3 {[%clk 0:02:59.5]} 4... Nc6 {[%clk 0:02:59.9]} 5. d4 {[%clk 0:02:56.6]} 5...
exd4 {[%clk 0:03:00]} 6. Nxd4 {[%clk 0:02:57.5]} 6... Nf6 {[%clk 0:02:57.9]} 7.
Nxc6 {[%clk 0:02:54]} 7... Bxc6 {[%clk 0:02:56.7]} 8. e5 {[%clk 0:02:53.3]} 8...
Ne4 {[%clk 0:02:48.4]} 9. Nxe4 {[%clk 0:02:46.3]} 9... Bxe4 {[%clk 0:02:49.3]}
10. Qg4 {[%clk 0:02:46.8]} 10... Bb4+ {[%clk 0:02:30.9]} 11. Bd2 {[%clk
0:02:21.5]} 11... Bxd2+ {[%clk 0:02:30.9]} 12. Kxd2 {[%clk 0:02:22.4]} 12... Bg6
{[%clk 0:02:29.7]} 13. Rd1 {[%clk 0:02:09.8]} 13... O-O {[%clk 0:02:18.8]} 14.
Kc1 {[%clk 0:02:09.8]} 14... Qe7 {[%clk 0:02:09.8]} 15. f4 {[%clk 0:02:07.7]}
15... f5 {[%clk 0:02:09.4]} 16. Qg3 {[%clk 0:02:03.7]} 16... Rad8 {[%clk
0:02:01.8]} 17. Bd3 {[%clk 0:01:52.4]} 17... d6 {[%clk 0:01:57.9]} 18. Rhe1
{[%clk 0:01:53]} 18... dxe5 {[%clk 0:01:56.9]} 19. Rxe5 {[%clk 0:01:53.9]} 19...
Qf6 {[%clk 0:01:47.5]} 20. Rde1 {[%clk 0:01:26.8]} 20... Rd6 {[%clk 0:01:18.9]}
21. Bc2 {[%clk 0:01:05.2]} 21... Rd4 {[%clk 0:00:50.3]} 22. Kb1 {[%clk
0:00:54.5]} 22... c5 {[%clk 0:00:46.4]} 23. h4 {[%clk 0:00:53.6]} 23... h6
{[%clk 0:00:43.6]} 24. Re6 {[%clk 0:00:52.4]} 1-0

[Event "*** SCC Grand Prix: Titled Tuesday Blitz"]
[Site "Chess.com"]
[Date "2020.09.08"]
[Round "3"]
[White "Nayemhaque22"]
[Black "MestreSoares"]
[Result "1-0"]
[WhiteElo "2338"]
[BlackElo "2099"]
[TimeControl "180+1"]
[EndTime "10:27:56 PDT"]
[Termination "Nayemhaque22 won by checkmate"]

1. d4 {[%clk 0:03:00.9]} 1... Nf6 {[%clk 0:02:58.8]} 2. c4 {[%clk 0:02:59]} 2...
c5 {[%clk 0:02:58.8]} 3. dxc5 {[%clk 0:02:57.7]} 3... e6 {[%clk 0:02:58.5]} 4.
Nc3 {[%clk 0:02:56.9]} 4... Bxc5 {[%clk 0:02:58.7]} 5. Nf3 {[%clk 0:02:53.4]}
5... O-O {[%clk 0:02:58]} 6. e4 {[%clk 0:02:53.5]} 6... d6 {[%clk 0:02:55.7]} 7.
Be2 {[%clk 0:02:47.6]} 7... Nc6 {[%clk 0:02:54]} 8. O-O {[%clk 0:02:47.1]} 8...
a6 {[%clk 0:02:49.4]} 9. a3 {[%clk 0:02:46.6]} 9... Ng4 {[%clk 0:02:46.5]} 10.
b4 {[%clk 0:02:35.4]} 10... Ba7 {[%clk 0:02:44.2]} 11. h3 {[%clk 0:02:34.5]}
11... Nge5 {[%clk 0:02:41.6]} 12. Nxe5 {[%clk 0:02:30.5]} 12... Nxe5 {[%clk
0:02:40.3]} 13. Kh1 {[%clk 0:02:26.9]} 13... Bd7 {[%clk 0:02:39.7]} 14. Qxd6
{[%clk 0:02:25.5]} 14... Bb8 {[%clk 0:02:34]} 15. Qd1 {[%clk 0:02:17.5]} 15...
Qh4 {[%clk 0:02:32.6]} 16. f4 {[%clk 0:02:09.8]} 16... Ng6 {[%clk 0:02:29.6]}
17. Qxd7 {[%clk 0:02:08.2]} 17... Nxf4 {[%clk 0:02:25.7]} 18. Bxf4 {[%clk
0:02:00]} 18... Bxf4 {[%clk 0:02:25.3]} 19. Rf3 {[%clk 0:01:57.2]} 19... Be5
{[%clk 0:02:24.4]} 20. Raf1 {[%clk 0:01:56]} 20... Bxc3 {[%clk 0:02:15]} 21.
Rxc3 {[%clk 0:01:54.8]} 21... Qxe4 {[%clk 0:02:06.9]} 22. Bf3 {[%clk 0:01:50.1]}
22... Qe5 {[%clk 0:02:05.8]} 23. Rd3 {[%clk 0:01:49.8]} 23... Rab8 {[%clk
0:01:59.4]} 24. Bxb7 {[%clk 0:01:43.1]} 24... h5 {[%clk 0:01:53.3]} 25. Rdf3
{[%clk 0:01:31.6]} 25... Rbd8 {[%clk 0:01:47.8]} 26. Qc6 {[%clk 0:01:27.8]}
26... Rd2 {[%clk 0:01:41.9]} 27. Rxf7 {[%clk 0:01:16.9]} 27... Rxf7 {[%clk
0:01:37.7]} 28. Qe8+ {[%clk 0:01:16.8]} 28... Kh7 {[%clk 0:01:38.1]} 29. Qxf7
{[%clk 0:01:14.9]} 29... Qg5 {[%clk 0:01:35.4]} 30. Be4+ {[%clk 0:01:12.3]}
30... Kh6 {[%clk 0:01:32.4]} 31. Qxe6+ {[%clk 0:01:12.1]} 31... g6 {[%clk
0:01:31.5]} 32. Qe8 {[%clk 0:01:07.3]} 32... Qg3 {[%clk 0:01:27]} 33. Qf8+
{[%clk 0:00:54.3]} 33... Kg5 {[%clk 0:01:23.8]} 34. Qf6+ {[%clk 0:00:47.2]}
34... Kh6 {[%clk 0:01:23]} 35. h4 {[%clk 0:00:45.2]} 35... Re2 {[%clk
0:01:11.5]} 36. Qh8# {[%clk 0:00:44.2]} 1-0

[Event "*** SCC Grand Prix: Titled Tuesday Blitz"]
[Site "Chess.com"]
[Date "2020.09.08"]
[Round "3"]
[White "Machidon"]
[Black "kobemagic"]
[Result "1-0"]
[WhiteElo "2555"]
[BlackElo "2351"]
[TimeControl "180+1"]
[EndTime "10:28:01 PDT"]
[Termination "Machidon won by checkmate"]

1. d4 {[%clk 0:03:00.9]} 1... Nf6 {[%clk 0:02:59.6]} 2. Bf4 {[%clk 0:03:00.8]}
2... c5 {[%clk 0:02:59.4]} 3. e3 {[%clk 0:03:00.7]} 3... d5 {[%clk 0:02:59.6]}
4. c3 {[%clk 0:03:00.9]} 4... Nc6 {[%clk 0:02:59.6]} 5. Nd2 {[%clk 0:03:01.4]}
5... Bf5 {[%clk 0:02:57.8]} 6. Ngf3 {[%clk 0:02:58]} 6... e6 {[%clk 0:02:58.1]}
7. Qb3 {[%clk 0:02:53.8]} 7... Qb6 {[%clk 0:02:53.7]} 8. Be2 {[%clk 0:02:53.2]}
8... c4 {[%clk 0:02:53.5]} 9. Qxb6 {[%clk 0:02:52.7]} 9... axb6 {[%clk
0:02:53.2]} 10. a3 {[%clk 0:02:53.4]} 10... b5 {[%clk 0:02:53.4]} 11. Rc1 {[%clk
0:02:53.2]} 11... Be7 {[%clk 0:02:46.9]} 12. O-O {[%clk 0:02:52.5]} 12... h6
{[%clk 0:02:47.5]} 13. h3 {[%clk 0:02:52.8]} 13... g5 {[%clk 0:02:47.4]} 14. Bh2
{[%clk 0:02:51.8]} 14... Rg8 {[%clk 0:02:44.2]} 15. Rfe1 {[%clk 0:02:49.6]}
15... g4 {[%clk 0:02:41.9]} 16. hxg4 {[%clk 0:02:50]} 16... Nxg4 {[%clk
0:02:42.8]} 17. Bf4 {[%clk 0:02:50.1]} 17... f6 {[%clk 0:02:26.4]} 18. Nh2
{[%clk 0:02:39.9]} 18... Nxh2 {[%clk 0:02:17.5]} 19. Kxh2 {[%clk 0:02:40.8]}
19... e5 {[%clk 0:02:17.4]} 20. Bg3 {[%clk 0:02:39.2]} 20... Kf7 {[%clk
0:02:09.8]} 21. dxe5 {[%clk 0:02:27.9]} 21... fxe5 {[%clk 0:02:09.4]} 22. e4
{[%clk 0:02:28.2]} 22... dxe4 {[%clk 0:02:01.5]} 23. Bh5+ {[%clk 0:02:28.3]}
23... Bg6 {[%clk 0:01:58.8]} 24. Bxg6+ {[%clk 0:02:28.4]} 24... Kxg6 {[%clk
0:01:58.1]} 25. Rxe4 {[%clk 0:02:28.8]} 25... Bf6 {[%clk 0:01:52.4]} 26. Nf3
{[%clk 0:02:27.4]} 26... Rge8 {[%clk 0:01:51.1]} 27. Rce1 {[%clk 0:02:27.1]}
27... Rad8 {[%clk 0:01:47.7]} 28. Nxe5+ {[%clk 0:02:17.5]} 28... Nxe5 {[%clk
0:01:38.2]} 29. Bxe5 {[%clk 0:02:18.4]} 29... Bg5 {[%clk 0:00:44.9]} 30. Bd4
{[%clk 0:02:10.2]} 30... Rxe4 {[%clk 0:00:37.2]} 31. Rxe4 {[%clk 0:02:11.1]}
31... Rd5 {[%clk 0:00:37]} 32. Kg3 {[%clk 0:01:58.1]} 32... Bd8 {[%clk
0:00:35.8]} 33. Re6+ {[%clk 0:01:55.8]} 33... Kh7 {[%clk 0:00:21.2]} 34. Kf4
{[%clk 0:01:51.3]} 34... Ba5 {[%clk 0:00:12.8]} 35. g4 {[%clk 0:01:44]} 35... b4
{[%clk 0:00:11.1]} 36. Re7+ {[%clk 0:01:40.4]} 36... Kg6 {[%clk 0:00:10]} 37.
Rg7# {[%clk 0:01:40.3]} 1-0